[Event "22nd ETCC Women 2019"]
[Site "Batumi"]
[Date "2019.10.27"]
[Round "4.5"]
[White "Houska, Jovanka"]
[Black "Hoolt, Sarah"]
[Result "1-0"]
[ECO "D02"]
[WhiteElo "2430"]
[BlackElo "2323"]
[Annotator "NA"]
[PlyCount "111"]
[EventDate "2019.10.24"]
[EventType "team-tourn"]
[EventCountry "GEO"]
[SourceTitle "playchess.com"]
[Source "ChessBase"]
[SourceQuality "1"]
[WhiteTeam "ENG"]
[BlackTeam "GER"]
[WhiteTeamCountry "ENG"]
[TimeControl "40/5400+30:1800+30"]

1. d4 {[%emt 0:00:00]} Nf6 {[%emt 0:00:00]} 2. Nf3 {[%emt 0:00:00]} d5 {[%emt 0:00:00]} 3. Bf4 {[%emt 0:00:38]} c5 {[%emt 0:00:06]} 4. e3 {[%emt 0:00:36]} Nc6 {[%emt 0:00:14]} 5. Nbd2 {[%emt 0:00:22]} e6 {[%emt 0:02:29]} 6. c3 {[%emt 0:00:38]} Qb6 {[%emt 0:05:06]} 7. Rb1 {[%emt 0:09:13]} Nh5 {[%emt 0:05:56]} 8. Bg3 {[%emt 0:01:30]} Nxg3 {[%emt 0:01:04]} 9. hxg3 {[%emt 0:00:04]} Be7 {[%emt 0:08:21]} 10. Bd3 {[%emt 0:00:37]} h6 {[%emt 0:01:26]} 11. Qe2 {[%emt 0:01:04]} Bd7 {[%emt 0:05:19]} 12. O-O {[%emt 0:12:11]} O-O {[%emt 0:08:36]} 13. Rfd1 {[%emt 0:11:19]} c4 {[%emt 0:12:45]} 14. Bc2 {[%emt 0:00:33]} f5 {[%emt 0:00:06]} 15. b3 {[%emt 0:02:20]} cxb3 {[%emt 0:00:08]} 16. Bxb3 {[%emt 0:00:22]} Qa5 {[%emt 0:03:07]} 17. c4 {[%emt 0:01:55]} Kh7 {[%emt 0:01:27]} 18. Ne1 {[%emt 0:11:36]} Rac8 {[%emt 0:08:06]} 19. Nd3 {[%emt 0:01:27]} Be8 {[%emt 0:05:39]} 20. cxd5 {[%emt 0:05:25]} exd5 {[%emt 0:00:17]} 21. Nf3 {[%emt 0:00:18]} Bf7 {[%emt 0:10:14]} 22. Nfe5 {[%emt 0:09:22]} Nxe5 {[%emt 0:03:34]} 23. Nxe5 {[%emt 0:00:54]} Be6 {[%emt 0:01:16]} 24. g4 {[%emt 0:01:09]} fxg4 {[%emt 0:06:40]} 25. Nxg4 {[%emt 0:05:50]} Bf5 {[%emt 0:01:42]} 26. Rbc1 {[%emt 0:02:16]} Rxc1 {[%emt 0:01:18]} 27. Rxc1 {[%emt 0:00:04]} Bd6 {[%emt 0:00:48]} 28. Bc2 {[%emt 0:02:36]} Qd8 {[%emt 0:01:52]} 29. Bxf5+ {[%emt 0:02:37]} Rxf5 {[%emt 0:00:01]} 30. Qd3 {[%emt 0:01:05]} Qg5 {[%emt 0:02:35]} 31. Ne5 {[%emt 0:00:18]} g6 {[%emt 0:03:10]} 32. Rb1 {[%emt 0:02:53]} b6 {[%emt 0:00:41]} 33. Rb5 {[%emt 0:01:28]} Bxe5 {[%emt 0:01:15]} 34. dxe5 {[%emt 0:00:03]} Rxe5 {[%emt 0:00:08]} 35. f4 {[%emt 0:00:04]} Qf5 {[%emt 0:00:09]} 36. Qa3 {[%emt 0:03:40]} Re6 {[%emt 0:01:25]} 37. Qxa7+ {[%emt 0:00:12]} Kg8 {[%emt 0:00:22]} 38. Rxb6 {[%emt 0:02:04]} Rxb6 {[%emt 0:00:12]} 39. Qxb6 {[%emt 0:00:03]} Qd3 {[%emt 0:00:43]} 40. a4 {[%emt 0:00:00]} h5 {[%emt 0:00:00]} 41. Kh2 {[%emt 0:04:20]} Qf5 {[%emt 0:06:23]} 42. Qd8+ {[%emt 0:02:31]} Kh7 {[%emt 0:00:15]} 43. Qc7+ {[%emt 0:00:21]} Kh6 {[%emt 0:05:37]} 44. Qe5 {[%emt 0:00:13]} Qf8 {[%emt 0:01:33]} 45. Qxd5 {[%emt 0:00:13]} Kh7 {[%emt 0:00:35]} 46. Qd7+ {[%emt 0:06:06]} Kg8 {[%emt 0:01:05]} 47. Qe6+ {[%emt 0:00:44]} Kh7 {[%emt 0:00:06]} 48. Kh3 {[%emt 0:03:16]} Qc5 {[%emt 0:01:40]} 49. Kh2 {[%emt 0:11:49]} Qa5 {[%emt 0:00:54]} 50. Qf7+ {[%emt 0:00:27]} Kh6 {[%emt 0:00:51]} 51. Qf6 {[%emt 0:03:19]} Kh7 {[%emt 0:01:05]} 52. Qe7+ {[%emt 0:01:01]} Kg8 {[%emt 0:00:12]} 53. Qg5 {[%emt 0:00:40]} Qxa4 {[%emt 0:05:03]} 54. Qxg6+ {[%emt 0:00:05]} Kf8 {[%emt 0:00:04]} 55. Qxh5 {[%emt 0:00:17]} Qe4 {[%emt 0:00:16]} 56. Qe5 {[%emt 0:00:55]} 1-0

[Event "22nd ETCC Women 2019"]
[Site "Batumi"]
[Date "2019.10.27"]
[Round "4.5"]
[White "Hoang, Thanh Trang"]
[Black "Brunello, Marina"]
[Result "1-0"]
[ECO "D11"]
[WhiteElo "2414"]
[BlackElo "2381"]
[Annotator "NA"]
[PlyCount "71"]
[EventDate "2019.10.24"]
[EventType "team-tourn"]
[EventCountry "GEO"]
[SourceTitle "playchess.com"]
[Source "ChessBase"]
[SourceQuality "1"]
[WhiteTeam "Hungary"]
[BlackTeam "Italy"]
[WhiteTeamCountry "HUN"]
[BlackTeamCountry "ITA"]
[TimeControl "40/5400+30:1800+30"]

1. d4 {[%emt 0:00:00]} d5 {[%emt 0:00:00]} 2. Nf3 {[%emt 0:00:06]} Nf6 {[%emt 0:00:00]} 3. c4 {[%emt 0:00:33]} c6 {[%emt 0:00:02]} 4. e3 {[%emt 0:00:27]} Bg4 {[%emt 0:00:37]} 5. Qb3 {[%emt 0:00:41]} Qb6 {[%emt 0:03:22]} 6. Nc3 {[%emt 0:00:46]} e6 {[%emt 0:00:56]} 7. Nh4 {[%emt 0:01:26]} Be7 {[%emt 0:07:12]} 8. h3 {[%emt 0:01:16]} Bh5 {[%emt 0:00:09]} 9. g4 {[%emt 0:01:03]} Bg6 {[%emt 0:00:55]} 10. Nxg6 {[%emt 0:01:32]} hxg6 {[%emt 0:00:04]} 11. Bg2 {[%emt 0:01:03]} g5 {[%emt 0:10:15]} 12. Bd2 {[%emt 0:08:03]} Nbd7 {[%emt 0:06:48]} 13. O-O-O {[%emt 0:06:00]} O-O-O {[%emt 0:17:10]} 14. Qa4 {[%emt 0:11:28]} Kb8 {[%emt 0:09:51]} 15. c5 {[%emt 0:09:13]} Qc7 {[%emt 0:01:29]} 16. b4 {[%emt 0:01:16]} a6 {[%emt 0:08:53]} 17. Qb3 {[%emt 0:06:30]} e5 {[%emt 0:00:53]} 18. a4 {[%emt 0:00:38]} Ka8 {[%emt 0:02:41]} 19. b5 {[%emt 0:03:51]} Bxc5 {[%emt 0:12:41]} 20. dxc5 {[%emt 0:03:02]} Nxc5 {[%emt 0:00:07]} 21. Qc2 {[%emt 0:00:56]} cxb5 {[%emt 0:02:14]} 22. axb5 {[%emt 0:05:35]} Qa5 {[%emt 0:03:08]} 23. bxa6 {[%emt 0:12:28]} bxa6 {[%emt 0:03:11]} 24. Be1 {[%emt 0:03:33]} e4 {[%emt 0:02:40]} 25. Kd2 {[%emt 0:04:14]} Rb8 {[%emt 0:02:31]} 26. Ke2 {[%emt 0:01:14]} Qa3 {[%emt 0:00:16]} 27. Nb1 {[%emt 0:03:55]} Qb2 {[%emt 0:01:51]} 28. Qxb2 {[%emt 0:01:36]} Rxb2+ {[%emt 0:00:04]} 29. Kf1 {[%emt 0:01:33]} Rhb8 {[%emt 0:01:28]} 30. Nc3 {[%emt 0:00:22]} Nd3 {[%emt 0:01:06]} 31. Nxd5 {[%emt 0:02:48]} Rb1 {[%emt 0:01:26]} 32. Nc3 {[%emt 0:02:53]} Rxd1 {[%emt 0:00:35]} 33. Nxd1 {[%emt 0:00:05]} Rb1 {[%emt 0:00:33]} 34. Ke2 {[%emt 0:00:07]} Ra1 {[%emt 0:00:25]} 35. Nc3 {[%emt 0:00:57]} Nc1+ {[%emt 0:00:37]} 36. Kd2 {[%emt 0:00:12]} 1-0

[Event "22nd ETCC Women 2019"]
[Site "Batumi"]
[Date "2019.10.27"]
[Round "4.6"]
[White "Sedina, Elena"]
[Black "Lazarne Vajda, Szidonia"]
[Result "1/2-1/2"]
[ECO "B10"]
[WhiteElo "2294"]
[BlackElo "2353"]
[Annotator "NA"]
[PlyCount "60"]
[EventDate "2019.10.24"]
[EventType "team-tourn"]
[EventCountry "GEO"]
[SourceTitle "playchess.com"]
[Source "ChessBase"]
[SourceQuality "1"]
[WhiteTeam "Italy"]
[BlackTeam "Hungary"]
[WhiteTeamCountry "ITA"]
[BlackTeamCountry "HUN"]
[TimeControl "40/5400+30:1800+30"]

1. e4 {[%emt 0:00:00]} c6 {[%emt 0:00:00]} 2. c4 {[%emt 0:03:47]} d5 {[%emt 0:00:04]} 3. exd5 {[%emt 0:00:05]} cxd5 {[%emt 0:00:07]} 4. cxd5 {[%emt 0:00:41]} Nf6 {[%emt 0:00:15]} 5. Nc3 {[%emt 0:00:32]} Nxd5 {[%emt 0:00:56]} 6. Nf3 {[%emt 0:00:07]} Nc6 {[%emt 0:01:18]} 7. d4 {[%emt 0:04:08]} Bg4 {[%emt 0:01:09]} 8. Qb3 {[%emt 0:01:45]} Bxf3 {[%emt 0:00:31]} 9. gxf3 e6 {[%emt 0:00:35]} 10. Qxb7 {[%emt 0:00:39]} Nxd4 {[%emt 0:00:29]} 11. Bb5+ {[%emt 0:00:20]} Nxb5 {[%emt 0:00:21]} 12. Qc6+ {[%emt 0:00:11]} Ke7 {[%emt 0:00:45]} 13. Qxb5 {[%emt 0:00:14]} Qd7 {[%emt 0:02:17]} 14. Nxd5+ {[%emt 0:02:01]} Qxd5 {[%emt 0:01:57]} 15. Bg5+ {[%emt 0:01:39]} f6 {[%emt 0:00:16]} 16. Qxd5 {[%emt 0:00:08]} exd5 {[%emt 0:00:05]} 17. Be3 {[%emt 0:00:14]} Ke6 {[%emt 0:02:15]} 18. O-O-O {[%emt 0:01:38]} Bb4 {[%emt 0:01:38]} 19. a3 {[%emt 0:05:38]} Rhc8+ {[%emt 0:03:12]} 20. Kb1 {[%emt 0:00:12]} Bc5 21. Rhe1 {[%emt 0:01:49]} Bxe3 {[%emt 0:05:29]} 22. Rxe3+ {[%emt 0:01:20]} Kd6 {[%emt 0:04:07]} 23. Rde1 {[%emt 0:03:27]} Rc4 {[%emt 0:39:02]} 24. b3 {[%emt 0:32:51]} Rf4 {[%emt 0:14:34]} 25. Re6+ {[%emt 0:02:41]} Kc5 {[%emt 0:03:07]} 26. Rc1+ Kd4 {[%emt 0:00:12]} 27. Rd1+ {[%emt 0:00:38]} Kc5 28. b4+ {[%emt 0:27:54]} Kc4 {[%emt 0:01:07]} 29. Rc6+ Kb5 {[%emt 0:00:59]} 30. Rc5+ {[%emt 0:00:22]} Kb6 {[%emt 0:00:16]} 1/2-1/2

[Event "22nd ETCC Women 2019"]
[Site "Batumi"]
[Date "2019.10.27"]
[Round "4.6"]
[White "Klek, Hanna Marie"]
[Black "Toma, Katarzyna"]
[Result "1-0"]
[ECO "D90"]
[WhiteElo "2248"]
[BlackElo "2272"]
[Annotator "NA"]
[PlyCount "69"]
[EventDate "2019.10.24"]
[EventType "team-tourn"]
[EventCountry "GEO"]
[SourceTitle "playchess.com"]
[Source "ChessBase"]
[SourceQuality "1"]
[WhiteTeam "Germany"]
[BlackTeam "England"]
[WhiteTeamCountry "GER"]
[BlackTeamCountry "ENG"]
[TimeControl "40/5400+30:1800+30"]

1. d4 {[%emt 0:00:00]} Nf6 {[%emt 0:00:00]} 2. c4 {[%emt 0:00:00]} g6 {[%emt 0:00:00]} 3. Nc3 {[%emt 0:00:00]} d5 {[%emt 0:00:00]} 4. Nf3 {[%emt 0:00:00]} Bg7 {[%emt 0:00:09]} 5. h4 {[%emt 0:00:00]} c6 {[%emt 0:00:53]} 6. cxd5 {[%emt 0:00:00]} cxd5 {[%emt 0:00:07]} 7. Bf4 {[%emt 0:00:04]} Nc6 {[%emt 0:02:10]} 8. e3 {[%emt 0:00:08]} O-O {[%emt 0:01:46]} 9. Qb3 {[%emt 0:00:05]} Na5 {[%emt 0:02:42]} 10. Qa3 {[%emt 0:00:08]} Nc6 {[%emt 0:01:11]} 11. Rc1 {[%emt 0:01:55]} Bf5 {[%emt 0:01:30]} 12. Be2 {[%emt 0:01:23]} Rc8 {[%emt 0:09:00]} 13. b4 {[%emt 0:04:06]} Qb6 {[%emt 0:10:05]} 14. b5 {[%emt 0:01:42]} Qa5 {[%emt 0:00:06]} 15. Qxa5 {[%emt 0:07:32]} Nxa5 {[%emt 0:00:05]} 16. O-O {[%emt 0:03:40]} Rfd8 {[%emt 0:14:26]} 17. Ne5 {[%emt 0:09:23]} Ne8 {[%emt 0:03:41]} 18. g4 {[%emt 0:12:15]} Be6 {[%emt 0:00:53]} 19. Nd3 {[%emt 0:01:45]} f6 {[%emt 0:06:26]} 20. g5 {[%emt 0:09:06]} Nd6 {[%emt 0:04:04]} 21. Nc5 {[%emt 0:19:24]} Bf7 {[%emt 0:00:41]} 22. Bg4 {[%emt 0:02:05]} Nf5 {[%emt 0:00:35]} 23. h5 {[%emt 0:01:34]} e5 {[%emt 0:01:20]} 24. hxg6 {[%emt 0:01:52]} hxg6 {[%emt 0:00:46]} 25. gxf6 {[%emt 0:01:17]} Bxf6 {[%emt 0:16:15]} 26. dxe5 {[%emt 0:00:25]} Be7 {[%emt 0:00:35]} 27. e4 {[%emt 0:04:38]} Rxc5 {[%emt 0:03:38]} 28. exf5 {[%emt 0:00:06]} gxf5 {[%emt 0:02:38]} 29. Bxf5 {[%emt 0:00:34]} d4 {[%emt 0:00:48]} 30. Ne4 {[%emt 0:00:23]} Rxb5 {[%emt 0:00:11]} 31. Rc7 {[%emt 0:03:09]} Nc6 {[%emt 0:00:12]} 32. Kh2 {[%emt 0:00:59]} Bxa2 {[%emt 0:04:10]} 33. Rg1+ {[%emt 0:00:25]} Kh8 {[%emt 0:01:02]} 34. Bg5 {[%emt 0:04:00]} Rf8 {[%emt 0:06:14]} 35. Bf6+ {[%emt 0:01:32]} 1-0

[Event "22nd ETCC Women 2019"]
[Site "Batumi"]
[Date "2019.10.27"]
[Round "4.7"]
[White "Gara, Ticia"]
[Black "Gueci, Tea"]
[Result "1-0"]
[ECO "A13"]
[WhiteElo "2322"]
[BlackElo "2265"]
[Annotator "NA"]
[PlyCount "127"]
[EventDate "2019.10.24"]
[EventType "team-tourn"]
[EventCountry "GEO"]
[SourceTitle "playchess.com"]
[Source "ChessBase"]
[SourceQuality "1"]
[WhiteTeam "Hungary"]
[BlackTeam "Italy"]
[WhiteTeamCountry "HUN"]
[BlackTeamCountry "ITA"]
[TimeControl "40/5400+30:1800+30"]

1. c4 {[%emt 0:00:00]} e6 {[%emt 0:00:00]} 2. Nf3 {[%emt 0:00:00]} Nf6 {[%emt 0:00:00]} 3. g3 {[%emt 0:00:22]} d5 {[%emt 0:00:00]} 4. d4 {[%emt 0:00:14]} Bb4+ {[%emt 0:00:18]} 5. Bd2 {[%emt 0:00:20]} Bd6 {[%emt 0:00:06]} 6. Bg2 {[%emt 0:00:45]} c6 {[%emt 0:00:11]} 7. b3 {[%emt 0:01:07]} Ne4 {[%emt 0:02:37]} 8. Nc3 {[%emt 0:02:24]} f5 {[%emt 0:05:05]} 9. O-O {[%emt 0:00:40]} Nd7 {[%emt 0:05:03]} 10. Rc1 {[%emt 0:00:40]} O-O {[%emt 0:01:20]} 11. Bf4 {[%emt 0:01:12]} Be7 {[%emt 0:09:22]} 12. Nxe4 {[%emt 0:07:48]} fxe4 {[%emt 0:00:42]} 13. Ne5 {[%emt 0:00:44]} a5 {[%emt 0:04:32]} 14. f3 {[%emt 0:03:42]} exf3 {[%emt 0:03:49]} 15. exf3 {[%emt 0:00:44]} a4 {[%emt 0:05:55]} 16. Re1 {[%emt 0:06:31]} axb3 {[%emt 0:05:58]} 17. axb3 {[%emt 0:02:24]} Bb4 {[%emt 0:01:02]} 18. Re2 {[%emt 0:02:43]} Nxe5 {[%emt 0:08:18]} 19. Bxe5 {[%emt 0:00:25]} Bd7 {[%emt 0:00:16]} 20. Ra1 {[%emt 0:06:31]} Bc3 {[%emt 0:09:21]} 21. Rxa8 {[%emt 0:09:22]} Qxa8 {[%emt 0:00:05]} 22. Qc1 {[%emt 0:01:01]} Qa5 {[%emt 0:04:51]} 23. Rc2 {[%emt 0:08:57]} Bb4 {[%emt 0:01:08]} 24. Qg5 {[%emt 0:02:23]} Rf7 {[%emt 0:03:19]} 25. h4 {[%emt 0:01:06]} Be7 {[%emt 0:10:17]} 26. Qd2 {[%emt 0:05:22]} Qb6 {[%emt 0:06:00]} 27. c5 {[%emt 0:02:38]} Qd8 {[%emt 0:10:26]} 28. Ra2 {[%emt 0:00:27]} Bf6 {[%emt 0:01:24]} 29. f4 {[%emt 0:05:32]} b6 {[%emt 0:01:49]} 30. Qe1 {[%emt 0:06:49]} Be7 {[%emt 0:00:48]} 31. b4 {[%emt 0:00:45]} b5 {[%emt 0:00:30]} 32. Qa1 {[%emt 0:01:43]} Rf8 {[%emt 0:00:25]} 33. Ra7 {[%emt 0:01:36]} h6 {[%emt 0:00:45]} 34. Qa6 {[%emt 0:06:23]} Bxh4 {[%emt 0:00:37]} 35. gxh4 {[%emt 0:05:21]} Qxh4 {[%emt 0:00:02]} 36. Qa1 {[%emt 0:01:08]} Rf7 {[%emt 0:00:44]} 37. Ra3 {[%emt 0:02:20]} Qg4 {[%emt 0:00:48]} 38. Ra8+ {[%emt 0:03:36]} Rf8 {[%emt 0:00:24]} 39. Rxf8+ {[%emt 0:01:02]} Kxf8 {[%emt 0:00:05]} 40. Qb1 {[%emt 0:00:00]} Kg8 {[%emt 0:00:00]} 41. Qd3 {[%emt 0:05:06]} Be8 {[%emt 0:05:07]} 42. Kh2 {[%emt 0:03:13]} Bf7 {[%emt 0:19:07]} 43. Bh3 {[%emt 0:09:05]} Qh4 {[%emt 0:00:24]} 44. Qg3 {[%emt 0:07:39]} Qxg3+ {[%emt 0:00:26]} 45. Kxg3 {[%emt 0:00:02]} g6 {[%emt 0:00:52]} 46. Bf6 {[%emt 0:02:10]} Kf8 {[%emt 0:01:15]} 47. f5 {[%emt 0:00:54]} exf5 {[%emt 0:04:35]} 48. Kf4 {[%emt 0:00:07]} Be8 {[%emt 0:00:54]} 49. Ke5 {[%emt 0:00:53]} Kf7 {[%emt 0:00:30]} 50. Bd8 {[%emt 0:00:45]} Bd7 {[%emt 0:00:27]} 51. Bh4 {[%emt 0:06:27]} g5 {[%emt 0:02:13]} 52. Bf2 {[%emt 0:00:11]} g4 {[%emt 0:00:39]} 53. Bf1 {[%emt 0:01:23]} h5 {[%emt 0:00:59]} 54. Bd3 {[%emt 0:01:00]} Kg6 {[%emt 0:00:31]} 55. Bh4 {[%emt 0:00:23]} g3 {[%emt 0:00:21]} 56. Bxg3 {[%emt 0:00:06]} Kg5 {[%emt 0:00:06]} 57. Kd6 {[%emt 0:00:27]} Be8 {[%emt 0:00:09]} 58. Ke7 {[%emt 0:01:35]} Bg6 {[%emt 0:00:25]} 59. Kd7 {[%emt 0:00:28]} h4 {[%emt 0:01:22]} 60. Bh2 {[%emt 0:00:45]} Kg4 {[%emt 0:00:37]} 61. Kxc6 {[%emt 0:00:11]} Be8+ {[%emt 0:00:22]} 62. Kxd5 {[%emt 0:00:12]} f4 {[%emt 0:00:18]} 63. c6 {[%emt 0:00:23]} f3 {[%emt 0:00:28]} 64. Ke4 1-0

[Event "22nd ETCC Women 2019"]
[Site "Batumi"]
[Date "2019.10.27"]
[Round "4.7"]
[White "Lauterbach, Ingrid"]
[Black "Osmanodja, Filiz"]
[Result "0-1"]
[ECO "A06"]
[WhiteElo "2078"]
[BlackElo "2225"]
[Annotator "NA"]
[PlyCount "64"]
[EventDate "2019.10.24"]
[EventType "team-tourn"]
[EventCountry "GEO"]
[SourceTitle "playchess.com"]
[Source "ChessBase"]
[SourceQuality "1"]
[WhiteTeam "England"]
[BlackTeam "Germany"]
[WhiteTeamCountry "ENG"]
[BlackTeamCountry "GER"]
[TimeControl "40/5400+30:1800+30"]

1. Nf3 {[%emt 0:00:00]} d5 {[%emt 0:00:00]} 2. g3 {[%emt 0:00:00]} g6 {[%emt 0:00:00]} 3. Bg2 {[%emt 0:00:04]} Bg7 {[%emt 0:00:00]} 4. O-O {[%emt 0:00:30]} e5 {[%emt 0:00:00]} 5. d3 {[%emt 0:00:38]} Ne7 {[%emt 0:00:13]} 6. c4 {[%emt 0:02:22]} d4 {[%emt 0:06:23]} 7. b4 {[%emt 0:07:27]} O-O {[%emt 0:01:04]} 8. Bb2 {[%emt 0:03:59]} a5 {[%emt 0:04:41]} 9. a3 {[%emt 0:13:29]} axb4 {[%emt 0:03:15]} 10. axb4 {[%emt 0:00:06]} Rxa1 {[%emt 0:00:03]} 11. Bxa1 {[%emt 0:00:07]} Na6 {[%emt 0:02:51]} 12. b5 {[%emt 0:02:39]} Nc5 {[%emt 0:00:44]} 13. Nbd2 {[%emt 0:05:03]} f5 {[%emt 0:10:27]} 14. Nb3 {[%emt 0:01:03]} Ne6 {[%emt 0:03:36]} 15. e3 {[%emt 0:07:05]} f4 {[%emt 0:12:44]} 16. exd4 {[%emt 0:04:54]} exd4 {[%emt 0:01:48]} 17. Re1 {[%emt 0:02:32]} fxg3 {[%emt 0:08:00]} 18. hxg3 {[%emt 0:00:32]} Nf5 {[%emt 0:01:26]} 19. Nbd2 {[%emt 0:03:27]} h5 {[%emt 0:08:37]} 20. Bh3 {[%emt 0:09:30]} Nc5 {[%emt 0:14:35]} 21. Bf1 {[%emt 0:08:17]} h4 {[%emt 0:06:10]} 22. g4 {[%emt 0:03:07]} Nh6 {[%emt 0:01:38]} 23. g5 {[%emt 0:00:52]} Nf7 {[%emt 0:01:56]} 24. Nxh4 {[%emt 0:05:36]} Qxg5+ {[%emt 0:01:03]} 25. Ng2 {[%emt 0:00:07]} Nd6 {[%emt 0:07:50]} 26. Ne4 {[%emt 0:04:31]} Ndxe4 {[%emt 0:01:03]} 27. dxe4 {[%emt 0:00:14]} Bg4 {[%emt 0:00:30]} 28. Be2 {[%emt 0:02:59]} Bh3 {[%emt 0:00:12]} 29. Bf1 {[%emt 0:00:28]} Bg4 {[%emt 0:00:26]} 30. Be2 {[%emt 0:00:06]} Bh3 {[%emt 0:00:02]} 31. Bf1 {[%emt 0:00:03]} Ne6 {[%emt 0:01:39]} 32. Qd3 {[%emt 0:00:31]} Bxg2 {[%emt 0:00:22]} 0-1

[Event "22nd ETCC Women 2019"]
[Site "Batumi"]
[Date "2019.10.27"]
[Round "4.8"]
[White "Muetsch, Annmarie"]
[Black "Longson, Sarah N"]
[Result "1-0"]
[ECO "C45"]
[WhiteElo "2266"]
[BlackElo "2073"]
[Annotator "NA"]
[PlyCount "83"]
[EventDate "2019.10.24"]
[EventType "team-tourn"]
[EventCountry "GEO"]
[SourceTitle "playchess.com"]
[Source "ChessBase"]
[SourceQuality "1"]
[WhiteTeam "Germany"]
[BlackTeam "England"]
[WhiteTeamCountry "GER"]
[BlackTeamCountry "ENG"]
[TimeControl "40/5400+30:1800+30"]

1. e4 {[%emt 0:00:00]} e5 {[%emt 0:00:00]} 2. Nf3 {[%emt 0:00:00]} Nc6 {[%emt 0:00:00]} 3. d4 {[%emt 0:00:00]} exd4 {[%emt 0:00:00]} 4. Nxd4 {[%emt 0:00:00]} Nf6 {[%emt 0:00:06]} 5. Nxc6 {[%emt 0:00:00]} bxc6 {[%emt 0:00:04]} 6. e5 {[%emt 0:00:05]} Qe7 {[%emt 0:00:06]} 7. Qe2 {[%emt 0:00:04]} Nd5 {[%emt 0:00:05]} 8. c4 {[%emt 0:00:04]} Nb6 {[%emt 0:00:34]} 9. Nc3 {[%emt 0:00:07]} Ba6 {[%emt 0:00:13]} 10. Qe4 {[%emt 0:01:16]} Qe6 {[%emt 0:00:12]} 11. b3 {[%emt 0:00:47]} Bb4 {[%emt 0:00:29]} 12. Bb2 {[%emt 0:00:23]} d5 {[%emt 0:09:18]} 13. cxd5 {[%emt 0:04:21]} Bxc3+ {[%emt 0:02:45]} 14. Bxc3 {[%emt 0:00:05]} cxd5 {[%emt 0:00:52]} 15. Qd4 {[%emt 0:10:07]} Bxf1 {[%emt 0:00:38]} 16. Rxf1 {[%emt 0:01:41]} O-O {[%emt 0:02:23]} 17. f4 {[%emt 0:03:37]} f6 {[%emt 0:26:49]} 18. Kf2 {[%emt 0:08:28]} c5 {[%emt 0:02:43]} 19. Qxc5 {[%emt 0:00:53]} fxe5 {[%emt 0:01:00]} 20. Kg1 {[%emt 0:00:48]} Nd7 {[%emt 0:23:38]} 21. Qe3 {[%emt 0:03:36]} e4 {[%emt 0:00:11]} 22. Rac1 {[%emt 0:07:42]} Nf6 {[%emt 0:03:51]} 23. Bb2 {[%emt 0:07:06]} Rf7 {[%emt 0:03:15]} 24. Rc5 {[%emt 0:05:42]} Rd8 {[%emt 0:02:10]} 25. Bd4 {[%emt 0:06:15]} Ng4 {[%emt 0:01:04]} 26. Qe2 {[%emt 0:02:31]} Nh6 {[%emt 0:01:12]} 27. b4 {[%emt 0:04:36]} Nf5 {[%emt 0:00:55]} 28. Be5 {[%emt 0:00:25]} Qb6 {[%emt 0:02:59]} 29. Rd1 {[%emt 0:10:08]} Rfd7 {[%emt 0:03:04]} 30. Rb1 {[%emt 0:06:18]} a5 {[%emt 0:00:59]} 31. a3 {[%emt 0:00:13]} axb4 {[%emt 0:00:19]} 32. axb4 {[%emt 0:00:05]} Rc8 {[%emt 0:09:52]} 33. Rbc1 {[%emt 0:02:53]} Rxc5 {[%emt 0:01:33]} 34. bxc5 {[%emt 0:00:36]} Qc6 {[%emt 0:00:13]} 35. Qb2 {[%emt 0:01:31]} Rb7 {[%emt 0:01:57]} 36. Qa3 {[%emt 0:01:33]} Kf7 {[%emt 0:00:58]} 37. Qh3 {[%emt 0:01:04]} Nh6 {[%emt 0:01:11]} 38. Qh5+ {[%emt 0:02:31]} Kg8 {[%emt 0:00:16]} 39. Qg5 {[%emt 0:00:10]} Rd7 {[%emt 0:00:25]} 40. Bd4 {[%emt 0:00:00]} Rf7 {[%emt 0:00:00]} 41. Rb1 {[%emt 0:05:42]} Qa8 {[%emt 0:10:46]} 42. Qe5 {[%emt 0:03:33]} 1-0

[Event "22nd ETCC Women 2019"]
[Site "Batumi"]
[Date "2019.10.27"]
[Round "4.8"]
[White "Movileanu, Daniela"]
[Black "Terbe, Julianna"]
[Result "1-0"]
[ECO "C77"]
[WhiteElo "2173"]
[BlackElo "2280"]
[Annotator "NA"]
[PlyCount "83"]
[EventDate "2019.10.24"]
[EventType "team-tourn"]
[EventCountry "GEO"]
[SourceTitle "playchess.com"]
[Source "ChessBase"]
[SourceQuality "1"]
[WhiteTeam "Italy"]
[BlackTeam "Hungary"]
[WhiteTeamCountry "ITA"]
[BlackTeamCountry "HUN"]
[TimeControl "40/5400+30:1800+30"]

1. e4 {[%emt 0:00:00]} e5 {[%emt 0:00:00]} 2. Nf3 {[%emt 0:00:07]} Nc6 {[%emt 0:00:00]} 3. Bb5 {[%emt 0:00:32]} a6 {[%emt 0:00:00]} 4. Ba4 {[%emt 0:00:08]} Nf6 {[%emt 0:00:05]} 5. Bxc6 {[%emt 0:00:36]} dxc6 {[%emt 0:00:19]} 6. d3 {[%emt 0:00:06]} Nd7 {[%emt 0:00:45]} 7. Nbd2 {[%emt 0:00:37]} Be7 {[%emt 0:01:27]} 8. Nc4 {[%emt 0:01:51]} f6 {[%emt 0:00:16]} 9. O-O {[%emt 0:01:01]} O-O {[%emt 0:02:00]} 10. Ne3 {[%emt 0:05:25]} Nc5 {[%emt 0:06:05]} 11. h3 {[%emt 0:03:48]} Be6 {[%emt 0:08:02]} 12. Nh2 {[%emt 0:08:44]} Qe8 {[%emt 0:15:57]} 13. Nf5 {[%emt 0:04:33]} Rd8 {[%emt 0:11:30]} 14. Qg4 {[%emt 0:03:53]} g6 {[%emt 0:03:54]} 15. Qg3 {[%emt 0:11:44]} Kh8 {[%emt 0:04:04]} 16. Nxe7 {[%emt 0:02:33]} Qxe7 {[%emt 0:00:16]} 17. f4 {[%emt 0:00:29]} Nd7 {[%emt 0:08:26]} 18. Nf3 {[%emt 0:02:03]} Qc5+ {[%emt 0:02:18]} 19. Rf2 {[%emt 0:02:14]} Rde8 {[%emt 0:05:53]} 20. Kh1 {[%emt 0:08:12]} Bg8 {[%emt 0:14:42]} 21. fxe5 {[%emt 0:02:42]} fxe5 {[%emt 0:00:07]} 22. Bh6 {[%emt 0:00:49]} Rf6 {[%emt 0:01:39]} 23. Raf1 {[%emt 0:02:05]} a5 {[%emt 0:07:15]} 24. Nh4 {[%emt 0:15:23]} Rxf2 {[%emt 0:02:38]} 25. Rxf2 {[%emt 0:00:25]} Re7 {[%emt 0:03:03]} 26. Be3 {[%emt 0:04:41]} Qb4 {[%emt 0:01:30]} 27. c3 {[%emt 0:00:52]} Qd6 {[%emt 0:00:33]} 28. d4 {[%emt 0:01:15]} Bxa2 {[%emt 0:00:45]} 29. dxe5 {[%emt 0:01:16]} Qe6 {[%emt 0:00:29]} 30. Nf3 {[%emt 0:01:43]} c5 {[%emt 0:00:05]} 31. Bf4 {[%emt 0:00:54]} Qc6 {[%emt 0:00:52]} 32. Ng5 {[%emt 0:02:49]} h6 {[%emt 0:00:33]} 33. Qh4 {[%emt 0:03:00]} Kg7 {[%emt 0:00:30]} 34. Nf3 {[%emt 0:00:32]} g5 {[%emt 0:00:16]} 35. Bxg5 {[%emt 0:00:37]} Re6 {[%emt 0:00:44]} 36. Be3 {[%emt 0:01:34]} Nxe5 {[%emt 0:00:31]} 37. Nxe5 {[%emt 0:00:48]} Rxe5 {[%emt 0:00:01]} 38. Qg3+ {[%emt 0:00:07]} Rg5 {[%emt 0:00:34]} 39. Bxg5 {[%emt 0:00:08]} hxg5 {[%emt 0:00:05]} 40. Qxg5+ {[%emt 0:00:00]} Qg6 {[%emt 0:00:00]} 41. Qe5+ {[%emt 0:04:30]} Kg8 {[%emt 0:00:42]} 42. Rf4 {[%emt 0:01:43]} 1-0